fUST/lending_fUST_20250516
["ID","MTS","AMOUNT","RATE_DAILY","PERIOD"]
[361199729,1747335048369,-450.0,0.00014383,2]
[361199730,1747335048379,-151.0,0.00014383,2]
[361199731,1747335048389,-450.0,0.00014383,2]
[361199732,1747335048401,-585.3,0.00014383,2]
[361199733,1747335048412,-450.0,0.00014383,2]
[361199734,1747335048422,-281.08437268,0.00014383,2]
[361199735,1747335048433,-450.0,0.00014383,2]
[361199736,1747335048442,-214.510474,0.00014383,2]
[361199737,1747335048452,-450.0,0.00014383,2]
[361199738,1747335048462,-450.0,0.00014383,2]
[361199739,1747335048471,-214.510474,0.00014383,2]
[361199740,1747335048482,-450.0,0.00014383,2]
[361199741,1747335048492,-151.0,0.00014383,2]
[361199742,1747335048502,-235.183174,0.00014383,2]
[361199743,1747335048512,-439.47,0.00014383,2]
[361199744,1747335048522,-450.0,0.00014383,2]
[361199745,1747335048533,-450.0,0.00014383,2]
[361199746,1747335048543,-284.24,0.00014383,2]
[361199747,1747335048554,-450.0,0.00014383,2]
[361199748,1747335048566,-450.0,0.00014383,2]
[361199749,1747335048575,-450.0,0.00014383,2]
[361199750,1747335048585,-450.0,0.00014383,2]
[361199751,1747335048595,-261.68,0.00014383,2]
[361199752,1747335048604,-889.67,0.00014383,2]
[361199753,1747335048614,-450.0,0.00014383,2]
[361199754,1747335048624,-154.75,0.00014383,2]
[361199755,1747335048634,-450.0,0.00014383,2]
[361199756,1747335048644,-450.0,0.00014383,2]
[361199757,1747335048654,-450.0,0.00014383,2]
[361199758,1747335048664,-637.6,0.00014383,2]
[361199759,1747335048674,-450.0,0.00014383,2]
[361199760,1747335048683,-510.86,0.00014383,2]
[361199761,1747335048694,-450.0,0.00014383,2]
[361199762,1747335048704,-450.0,0.00014383,2]
[361199763,1747335048714,-557.23,0.00014383,2]
[361199764,1747335048724,-1900.3,0.00014383,2]
[361199765,1747335048734,-1087.12,0.00014383,2]
[361199766,1747335048744,-450.0,0.00014383,2]
[361199767,1747335048754,-450.0,0.00014383,2]
[361199768,1747335048764,-529.0,0.00014383,2]
[361199769,1747335048774,-450.0,0.00014383,2]
[361199770,1747335048784,-450.0,0.00014383,2]
[361199771,1747335048794,-450.0,0.00014383,2]
[361199772,1747335048804,-251.92,0.00014383,2]
[361199773,1747335048814,-393.97,0.00014383,2]
[361199774,1747335048823,-450.0,0.00014383,2]
[361199775,1747335048833,-450.0,0.00014383,2]
[361199776,1747335048843,-2159.38,0.00014383,2]
[361199777,1747335048853,-450.0,0.00014383,2]
[361199778,1747335048862,-450.0,0.00014383,2]
[361199779,1747335048872,-293.38,0.00014383,2]
[361199780,1747335048882,-1225.97548,0.00014383,2]
[361199781,1747335048893,-3040.09,0.00014383,2]
[361199782,1747335048903,-1225.97548,0.00014383,2]
[361199783,1747335048912,-1409.75,0.00014383,2]
[361199784,1747335048923,-450.0,0.00014383,2]
[361199785,1747335048933,-450.0,0.00014383,2]
[361199786,1747335048942,-574.82965919,0.0001448,2]
[361199787,1747335048952,-450.0,0.0001452,2]
[361199788,1747335048962,-450.0,0.0001452,2]
[361199789,1747335048972,-491.99,0.0001452,2]
[361199790,1747335048982,-450.0,0.0001452,2]
[361199791,1747335048993,-717.85,0.0001452,2]
[361199792,1747335049003,-647.48,0.0001452,2]
[361199793,1747335049014,-450.0,0.0001452,2]
[361199794,1747335049024,-569.45,0.0001452,2]
[361199795,1747335049034,-450.0,0.0001452,2]
[361199796,1747335049044,-450.0,0.0001452,2]
[361199797,1747335049055,-450.0,0.0001452,2]
[361199798,1747335049066,-450.0,0.0001452,2]
[361199799,1747335049077,-450.0,0.0001452,2]
[361199800,1747335049088,-157.64,0.0001452,2]
[361199801,1747335049098,-450.0,0.0001452,2]
[361199802,1747335049108,-450.0,0.0001452,2]
[361199803,1747335049118,-450.0,0.0001452,2]
[361199804,1747335049128,-450.0,0.0001452,2]
[361199805,1747335049138,-450.0,0.0001452,2]
[361199806,1747335049147,-450.0,0.0001452,2]
[361199807,1747335049158,-450.0,0.0001452,2]
[361199808,1747335049169,-450.0,0.0001452,2]
[361199809,1747335049179,-450.0,0.0001452,2]
[361199810,1747335049190,-450.0,0.0001452,2]
[361199811,1747335049200,-450.0,0.0001452,2]
[361199812,1747335049210,-232.73,0.0001452,2]
[361199813,1747335049222,-592.92,0.0001452,2]
[361199814,1747335049232,-450.0,0.0001452,2]
[361199815,1747335049243,-191.810242,0.0001452,2]
[361199816,1747335049253,-955.71,0.0001452,2]
[361199817,1747335049264,-3317.59,0.0001452,2]
[361199818,1747335049274,-450.0,0.0001452,2]
[361199819,1747335049284,-450.0,0.0001452,2]
[361199820,1747335049294,-450.0,0.0001452,2]
[361199821,1747335049305,-450.0,0.0001452,2]
[361199822,1747335049413,-585.3,0.0001452,2]
[361199823,1747335049424,-295.18,0.0001452,2]
[361199824,1747335049435,-450.0,0.0001452,2]
[361199825,1747335049445,-311.93,0.0001452,2]
[361199826,1747335049455,-450.0,0.0001452,2]
[361199827,1747335049464,-335.07,0.0001452,2]
[361199828,1747335049474,-394.98,0.0001452,2]
[361199829,1747335049484,-529.36,0.0001452,2]
[361199830,1747335049497,-265.31,0.0001452,2]
[361199831,1747335049507,-326.2,0.0001452,2]
[361199832,1747335049517,-450.0,0.0001452,2]
[361199833,1747335049527,-450.0,0.0001452,2]
[361199834,1747335049538,-889.67,0.0001452,2]
[361199835,1747335049548,-450.0,0.0001452,2]
[361199836,1747335049561,-450.0,0.0001452,2]
[361199837,1747335049571,-450.0,0.0001452,2]
[361199838,1747335049581,-450.0,0.0001452,2]
[361199839,1747335049591,-637.6,0.0001452,2]
[361199840,1747335049600,-450.0,0.0001452,2]
[361199841,1747335049611,-450.0,0.0001452,2]
[361199842,1747335049620,-450.0,0.0001452,2]
[361199843,1747335049630,-1900.3,0.0001452,2]
[361199844,1747335049640,-1087.12,0.0001452,2]
[361199845,1747335049649,-450.0,0.0001452,2]
[361199846,1747335049659,-344.0,0.0001452,2]
[361199847,1747335049670,-450.0,0.0001452,2]
[361199848,1747335049680,-450.0,0.0001452,2]
[361199849,1747335049690,-450.0,0.0001452,2]
[361199850,1747335049699,-450.0,0.0001452,2]
[361199851,1747335049709,-450.0,0.0001452,2]
[361199852,1747335049719,-2159.38,0.0001452,2]
[361199853,1747335049728,-450.0,0.0001452,2]
[361199854,1747335049738,-599.16,0.0001452,2]
[361199855,1747335049748,-3040.09,0.0001452,2]
[361199856,1747335049757,-1409.75,0.0001452,2]
[361199857,1747335049767,-450.0,0.0001452,2]
[361199858,1747335049777,-450.0,0.0001452,2]
[361199859,1747335049786,-151.0,0.00014657,2]
[361199860,1747335049795,-176.24997,0.00014657,2]
[361199861,1747335049809,-176.24997,0.00014657,2]
[361199862,1747335049818,-450.0,0.00014657,2]
[361199863,1747335049828,-548.04,0.00014657,2]
[361199864,1747335049837,-450.0,0.00014657,2]
[361199865,1747335049847,-717.85,0.00014657,2]
[361199866,1747335049856,-647.48,0.00014657,2]
[361199867,1747335049866,-450.0,0.00014657,2]
[361199868,1747335049875,-450.0,0.00014657,2]
[361199869,1747335049885,-450.0,0.00014657,2]
[361199870,1747335049894,-304.48,0.00014657,2]
[361199871,1747335049903,-450.0,0.00014657,2]
[361199872,1747335049912,-450.0,0.00014657,2]
[361199873,1747335049922,-381.98,0.00014657,2]
[361199874,1747335049932,-450.0,0.00014657,2]
[361199875,1747335049944,-450.0,0.00014657,2]
[361199876,1747335049952,-450.0,0.00014657,2]
[361199877,1747335049962,-339.24,0.00014657,2]
[361199878,1747335049971,-450.0,0.00014657,2]
[361199879,1747335049981,-302.68,0.00014657,2]
[361199880,1747335049990,-190.750829,0.00014657,2]
[361199881,1747335049998,-190.750829,0.00014657,2]
[361199882,1747335050009,-450.0,0.00014657,2]
[361199883,1747335050019,-450.0,0.00014657,2]
[361199884,1747335050028,-450.0,0.00014657,2]
[361199885,1747335050038,-450.0,0.00014657,2]
[361199886,1747335050048,-592.92,0.00014657,2]
[361199887,1747335050058,-450.0,0.00014657,2]
[361199888,1747335050068,-955.71,0.00014657,2]
[361199889,1747335050078,-3317.59,0.00014657,2]
[361199890,1747335050088,-450.0,0.00014657,2]
[361199891,1747335050097,-450.0,0.00014657,2]
[361199892,1747335050108,-450.0,0.00014657,2]
[361199893,1747335050117,-151.0,0.00014657,2]
[361199894,1747335050127,-450.0,0.00014657,2]
[361199895,1747335050137,-585.3,0.00014657,2]
[361199896,1747335050147,-458.39,0.00014657,2]
[361199897,1747335050156,-214.510474,0.00014657,2]
[361199898,1747335050166,-450.0,0.00014657,2]
[361199899,1747335050175,-214.510474,0.00014657,2]
[361199900,1747335050185,-151.0,0.00014657,2]
[361199901,1747335050194,-258.35,0.00014657,2]
[361199902,1747335050203,-359.83,0.00014657,2]
[361199903,1747335050212,-889.67,0.00014657,2]
[361199904,1747335050219,-450.0,0.00014657,2]
[361199905,1747335050227,-450.0,0.00014657,2]
[361199906,1747335050235,-450.0,0.00014657,2]
[361199907,1747335050243,-450.0,0.00014657,2]
[361199908,1747335050251,-637.6,0.00014657,2]
[361199909,1747335050259,-450.0,0.00014657,2]
[361199910,1747335050268,-257.57,0.00014657,2]
[361199911,1747335050277,-450.0,0.00014657,2]
[361199912,1747335050287,-1900.3,0.00014657,2]
[361199913,1747335050296,-1087.12,0.00014657,2]
[361199914,1747335050307,-450.0,0.00014657,2]
[361199915,1747335050316,-355.96,0.00014657,2]
[361199916,1747335050326,-309.59,0.00014657,2]
[361199917,1747335050335,-355.8,0.00014657,2]
[361199918,1747335050344,-450.0,0.00014657,2]
[361199919,1747335050356,-450.0,0.00014657,2]
[361199920,1747335050366,-2159.38,0.00014657,2]
[361199921,1747335050375,-450.0,0.00014657,2]
[361199922,1747335050384,-1225.97548,0.00014657,2]
[361199923,1747335050394,-3040.09,0.00014657,2]
[361199924,1747335050404,-1225.97548,0.00014657,2]
[361199925,1747335050414,-1409.75,0.00014657,2]
[361199926,1747335050424,-450.0,0.00014657,2]
[361199927,1747335050435,-450.0,0.00014657,2]
[361199928,1747335050444,-574.82965919,0.0001469,2]
[361199929,1747335050454,-450.0,0.00014794,2]
[361199930,1747335050463,-450.0,0.00014794,2]
[361199931,1747335050473,-717.85,0.00014794,2]
[361199932,1747335050482,-647.48,0.00014794,2]
[361199933,1747335050491,-450.0,0.00014794,2]
[361199934,1747335050501,-342.03,0.00014794,2]
[361199935,1747335050510,-450.0,0.00014794,2]
[361199936,1747335050520,-450.0,0.00014794,2]
[361199937,1747335050531,-450.0,0.00014794,2]
[361199938,1747335050540,-450.0,0.00014794,2]
[361199939,1747335050550,-450.0,0.00014794,2]
[361199940,1747335050562,-266.47,0.00014794,2]
[361199941,1747335050572,-450.0,0.00014794,2]
[361199942,1747335050583,-450.0,0.00014794,2]
[361199943,1747335050592,-450.0,0.00014794,2]
[361199944,1747335050602,-227.2,0.00014794,2]
[361199945,1747335050612,-229.62,0.00014794,2]
[361199946,1747335050621,-592.92,0.00014794,2]
[361199947,1747335050632,-450.0,0.00014794,2]
[361199948,1747335050641,-955.71,0.00014794,2]
[361199949,1747335050651,-3317.59,0.00014794,2]
[361199950,1747335050660,-450.0,0.00014794,2]
[361199951,1747335050669,-450.0,0.00014794,2]
[361199952,1747335050679,-450.0,0.00014794,2]
[361199953,1747335050689,-450.0,0.00014794,2]
[361199954,1747335050699,-585.3,0.00014794,2]
[361199955,1747335050708,-450.0,0.00014794,2]
[361199956,1747335050718,-889.67,0.00014794,2]
[361199957,1747335050727,-450.0,0.00014794,2]
[361199958,1747335050737,-450.0,0.00014794,2]
[361199959,1747335050746,-373.64,0.00014794,2]
[361199960,1747335050756,-450.0,0.00014794,2]
[361199961,1747335050766,-637.6,0.00014794,2]
[361199962,1747335050775,-450.0,0.00014794,2]
[361199963,1747335050785,-450.0,0.00014794,2]
[361199964,1747335050795,-1900.3,0.00014794,2]
[361199965,1747335050804,-1087.12,0.00014794,2]
[361199966,1747335050814,-184.66,0.00014794,2]
[361199967,1747335050823,-450.0,0.00014794,2]
[361199968,1747335050833,-450.0,0.00014794,2]
[361199969,1747335050842,-2159.38,0.00014794,2]
[361199970,1747335050852,-450.0,0.00014794,2]
[361199971,1747335050861,-3040.09,0.00014794,2]
[361199972,1747335050871,-1409.75,0.00014794,2]
[361199973,1747335050881,-450.0,0.00014794,2]
[361199974,1747335050891,-363.12030448,0.00014794,2]
[361199975,1747335050900,-54355.62390672,0.0001485,2]
[361199976,1747335050910,-151.0,0.0001485,2]
[361199977,1747335050919,-151.0,0.0001485,2]
[361199978,1747335050928,-151.0,0.0001485,2]
[361199979,1747335050938,-151.0,0.0001485,2]
[361199980,1747335050948,-151.0,0.0001485,2]
[361199981,1747335050957,-197.47362,0.0001485,2]
[361199982,1747335050967,-151.0,0.0001485,2]
[361199983,1747335050976,-151.0,0.0001485,2]
[361199984,1747335050986,-190.750829,0.0001485,2]
[361199985,1747335050996,-190.750829,0.0001485,2]
[361199986,1747335051005,-151.0,0.0001485,2]
[361199987,1747335051015,-214.510474,0.0001485,2]
[361199988,1747335051025,-214.510474,0.0001485,2]
[361199989,1747335051036,-151.0,0.0001485,2]
[361199990,1747335051046,-1225.97548,0.0001485,2]
[361199991,1747335051056,-1225.97548,0.0001485,2]
[361199992,1747335051066,-574.82965919,0.000149,2]
[361199993,1747335051075,-995.5253655,0.00014924,2]
[361199994,1747335051085,-151.0,0.00014931,2]
[361199995,1747335051095,-151.0,0.00014931,2]
[361199996,1747335051104,-151.0,0.00014931,2]
[361199997,1747335051114,-176.24997,0.00014931,2]
[361199998,1747335051124,-176.24997,0.00014931,2]
[361199999,1747335051134,-450.0,0.00014931,2]
[361200000,1747335051143,-450.0,0.00014931,2]
[361200001,1747335051154,-717.85,0.00014931,2]
[361200002,1747335051164,-647.48,0.00014931,2]
[361200003,1747335051174,-450.0,0.00014931,2]
[361200004,1747335051183,-496.09,0.00014931,2]
[361200005,1747335051194,-450.0,0.00014931,2]
[361200006,1747335051203,-450.0,0.00014931,2]
[361200007,1747335051213,-450.0,0.00014931,2]
[361200008,1747335051223,-253.1,0.00014931,2]
[361200009,1747335051233,-257.38,0.00014931,2]
[361200010,1747335051330,-450.0,0.00014931,2]
[361200011,1747335051340,-498.79067759,0.00014931,2]
[361200012,1747335051349,-592.92,0.00014931,2]
[361200013,1747335051362,-450.0,0.00014931,2]
[361200014,1747335051372,-955.71,0.00014931,2]
[361200015,1747335051382,-3317.59,0.00014931,2]
[361200016,1747335051391,-450.0,0.00014931,2]
[361200017,1747335051401,-450.0,0.00014931,2]
[361200018,1747335051410,-450.0,0.00014931,2]
[361200019,1747335051420,-450.0,0.00014931,2]
[361200020,1747335051430,-585.3,0.00014931,2]
[361200021,1747335051441,-450.0,0.00014931,2]
[361200022,1747335051451,-889.67,0.00014931,2]
[361200023,1747335051460,-450.0,0.00014931,2]
[361200024,1747335051469,-450.0,0.00014931,2]
[361200025,1747335051480,-450.0,0.00014931,2]
[361200026,1747335051490,-637.6,0.00014931,2]
[361200027,1747335051499,-450.0,0.00014931,2]
[361200028,1747335051508,-450.0,0.00014931,2]
[361200029,1747335051518,-1900.3,0.00014931,2]
[361200030,1747335051528,-1087.12,0.00014931,2]
[361200031,1747335051538,-450.0,0.00014931,2]
[361200032,1747335051547,-450.0,0.00014931,2]
[361200033,1747335051558,-2159.38,0.00014931,2]
[361200034,1747335051571,-450.0,0.00014931,2]
[361200035,1747335051581,-3040.09,0.00014931,2]
[361200036,1747335051590,-1409.75,0.00014931,2]
[361200037,1747335051599,-450.0,0.00014931,2]
[361200038,1747335051608,-500.14169102,0.00014973,2]
[361200039,1747335051618,-1711670.53000834,0.00015,5]
[361200040,1747335051838,-3290.0790286,0.00013396,2]
[361200041,1747335052253,-1709.9209714,0.00013396,2]
[361200042,1747335052264,-450.0,0.00013698,2]
[361200043,1747335052274,-450.0,0.00013698,2]
[361200044,1747335052283,-400.0,0.00013698,2]
[361200045,1747335052293,-350.0,0.00013835,2]
[361200046,1747335052304,-435.81729814,0.00013835,2]
[361200047,1747335052314,-250.0,0.00014109,2]
[361200048,1747335052324,-76953.2991923,0.00015,5]
[361200049,1747335052339,-2930.0,0.00015,5]
[361200050,1747335052351,-410.48308822,0.00015,5]
[361200051,1747335052366,-18752.95119385,0.00015,5]
[361200052,1747335052376,-5323.6624993,0.00015,5]
[361200053,1747335052478,-450.0,0.00013698,2]
[361200054,1747335052487,-350.0,0.00013835,2]
[361200055,1747335052496,-144.96275999,0.00015,5]
[361200056,1747335052512,-17303.85646,0.00015,5]
[361200057,1747335052526,-396.9411603,0.00015,5]
[361200058,1747335052538,-383.112,0.00015,5]
[361200059,1747335052677,-450.0,0.00013698,2]
[361200060,1747335052687,-50.0,0.00013698,2]
[361200061,1747335052699,-146.86169645,0.00013698,2]
[361200062,1747335052709,-516.69819978,0.00013698,2]
[361200063,1747335052718,-400.0,0.00013698,2]
[361200064,1747335052728,-350.57,0.00013835,2]
[361200065,1747335052738,-14878.57791377,0.00015,5]
[361200066,1747335052778,-26081.6127,0.00015,5]
[361200067,1747335052792,-74710.34639823,0.00015,5]
[361200068,1747335052859,-400.0,0.00013698,2]
[361200069,1747335052869,-450.0,0.00013698,2]
[361200070,1747335052878,-400.0,0.00013698,2]
[361200071,1747335052888,-402510.68600709,0.00015,5]
[361200072,1747335052988,-3174.93717675,0.00015,5]
[361200079,1747335945118,-180.62418459,0.00013016,2]
[361200080,1747335945142,-5000.0,0.00013026,2]
[361200081,1747335945166,-227.0,0.0001329,2]
[361200082,1747335945189,-500.0,0.00013291,2]
[361200083,1747335945211,-500.0,0.00013291,2]
[361200084,1747335945234,-500.0,0.00013291,2]
[361200085,1747335945257,-500.0,0.00013291,2]
[361200086,1747335945283,-500.0,0.00013291,2]
[361200087,1747335945305,-500.0,0.00013291,2]
[361200088,1747335945329,-316.97270647,0.00013291,2]
[361200089,1747335945351,-207.4,0.0001369,2]
[361200090,1747335945375,-500.0,0.00013697,2]
[361200091,1747335945399,-500.0,0.00013697,2]
[361200092,1747335945423,-500.0,0.00013697,2]
[361200093,1747335945448,-500.0,0.00013697,2]
[361200094,1747335945470,-500.0,0.00013697,2]
[361200095,1747335945493,-500.0,0.00013697,2]
[361200096,1747335945516,-500.0,0.00013697,2]
[361200097,1747335945539,-467.35157096,0.00013697,2]
[361200098,1747335945562,-407.73453451,0.00013697,2]
[361200099,1747335945587,-500.0,0.00013697,2]
[361200100,1747335945609,-500.0,0.00013697,2]
[361200101,1747335945632,-500.0,0.00013697,2]
[361200102,1747335945658,-500.0,0.00013697,2]
[361200103,1747335945684,-500.0,0.00013697,2]
[361200104,1747335945708,-500.0,0.00013697,2]
[361200105,1747335945731,-500.0,0.00013697,2]
[361200106,1747335945754,-500.0,0.00013697,2]
[361200107,1747335945776,-500.0,0.00013697,2]
[361200108,1747335945799,-500.0,0.00013697,2]
[361200109,1747335945822,-500.0,0.00013697,2]
[361200110,1747335945846,-500.0,0.00013697,2]
[361200111,1747335945868,-500.0,0.00013697,2]
[361200112,1747335945890,-500.0,0.00013697,2]
[361200113,1747335945912,-500.0,0.00013697,2]
[361200114,1747335945933,-500.0,0.00013697,2]
[361200115,1747335945956,-500.0,0.00013697,2]
[361200116,1747335945978,-500.0,0.00013697,2]
[361200117,1747335946001,-500.0,0.00013697,2]
[361200118,1747335946023,-500.0,0.00013697,2]
[361200119,1747335946044,-531.60646967,0.00013697,2]
[361200120,1747335946065,-531.60646967,0.00013697,2]
[361200121,1747335946087,-531.60646967,0.00013697,2]
[361200122,1747335946110,-531.60646967,0.00013697,2]
[361200123,1747335946130,-500.0,0.00013697,2]
[361200124,1747335946152,-500.0,0.00013697,2]
[361200125,1747335946173,-352.44872398,0.00013697,2]
[361200126,1747335946194,-451.72714982,0.00013697,2]
[361200127,1747335946217,-500.0,0.00013697,2]
[361200128,1747335946238,-500.0,0.00013697,2]
[361200129,1747335946259,-500.0,0.00013697,2]
[361200130,1747335946284,-531.60646967,0.00013697,2]
[361200131,1747335946306,-531.60646967,0.00013697,2]
[361200132,1747335946326,-400.0,0.00013698,2]
[361200133,1747335946348,-450.0,0.00013698,2]
[361200134,1747335946370,-450.0,0.00013698,2]
[361200135,1747335946391,-400.0,0.00013698,2]
[361200136,1747335946413,-450.0,0.00013698,2]
[361200137,1747335946433,-450.0,0.00013698,2]
[361200138,1747335946454,-450.0,0.00013698,2]
[361200139,1747335946475,-450.0,0.00013698,2]
[361200140,1747335946495,-450.0,0.00013698,2]
[361200141,1747335946515,-400.0,0.00013698,2]
[361200142,1747335946534,-450.0,0.00013698,2]
[361200143,1747335946554,-450.0,0.00013698,2]
[361200144,1747335946574,-450.0,0.00013698,2]
[361200145,1747335946594,-450.0,0.00013698,2]
[361200146,1747335946614,-400.0,0.00013698,2]
[361200147,1747335946635,-400.0,0.00013698,2]
[361200148,1747335946660,-400.0,0.00013698,2]
[361200149,1747335946680,-300.0,0.00013698,2]
[361200150,1747335946700,-450.0,0.00013698,2]
[361200151,1747335946720,-450.0,0.00013698,2]
[361200152,1747335946743,-450.0,0.00013698,2]
[361200153,1747335946763,-400.0,0.00013698,2]
[361200154,1747335946783,-450.0,0.00013698,2]
[361200155,1747335946805,-450.0,0.00013698,2]
[361200156,1747335946827,-450.0,0.00013698,2]
[361200157,1747335946851,-450.0,0.00013698,2]
[361200158,1747335946870,-450.0,0.00013698,2]
[361200159,1747335946889,-400.0,0.00013698,2]
[361200160,1747335946908,-400.0,0.00013698,2]
[361200161,1747335946928,-450.0,0.00013698,2]
[361200162,1747335946948,-450.0,0.00013698,2]
[361200163,1747335946967,-450.0,0.00013698,2]
[361200164,1747335946987,-400.0,0.00013698,2]
[361200165,1747335947006,-450.0,0.00013698,2]
[361200166,1747335947025,-450.0,0.00013698,2]
[361200167,1747335947048,-450.0,0.00013698,2]
[361200168,1747335947068,-450.0,0.00013698,2]
[361200169,1747335947090,-400.0,0.00013698,2]
[361200170,1747335947109,-400.0,0.00013698,2]
[361200171,1747335947129,-450.0,0.00013698,2]
[361200172,1747335947149,-400.0,0.00013698,2]
[361200173,1747335947169,-450.0,0.00013698,2]
[361200174,1747335947188,-400.0,0.00013698,2]
[361200175,1747335947208,-400.0,0.00013698,2]
[361200176,1747335947227,-450.0,0.00013698,2]
[361200177,1747335947248,-196.3056802,0.00013698,2]
[361200200,1747336232527,-1575.91080909,0.0001356,2]
[361200223,1747336237953,-453.67243545,0.0001356,2]
[361200230,1747336238008,-2970.41675546,0.0001356,2]
[361200232,1747336238018,-207.4,0.0001369,2]
[361200234,1747336238027,-531.60646967,0.00013697,2]
[361200236,1747336238036,-531.60646967,0.00013697,2]
[361200238,1747336238046,-519.01583688,0.00013698,2]
[361200240,1747336238055,-400.0,0.00013698,2]
[361200242,1747336238066,-450.0,0.00013698,2]
[361200244,1747336238075,-400.0,0.00013698,2]
[361200247,1747336238084,-400.00000011,0.00013698,2]
[361200250,1747336238094,-400.0,0.00013698,2]
[361200251,1747336238105,-450.0,0.00013698,2]
[361200253,1747336238114,-400.0,0.00013698,2]
[361200256,1747336238124,-450.0,0.00013698,2]
[361200258,1747336238134,-450.0,0.00013698,2]
[361200260,1747336238143,-450.0,0.00013698,2]
[361200262,1747336238153,-450.0,0.00013698,2]
[361200264,1747336238162,-450.0,0.00013698,2]
[361200266,1747336238172,-450.0,0.00013698,2]
[361200268,1747336238182,-450.0,0.00013698,2]
[361200270,1747336238192,-450.0,0.00013698,2]
[361200272,1747336238202,-450.0,0.00013698,2]
[361200274,1747336238211,-450.0,0.00013698,2]
[361200276,1747336238220,-450.0,0.00013698,2]
[361200278,1747336238230,-422.65,0.00013698,2]
[361200280,1747336238239,-450.0,0.00013698,2]
[361200282,1747336238248,-450.0,0.00013698,2]
[361200284,1747336238258,-450.0,0.00013698,2]
[361200286,1747336238268,-450.0,0.00013698,2]
[361200288,1747336238277,-400.0,0.00013698,2]
[361200290,1747336238287,-450.0,0.00013698,2]
[361200292,1747336238296,-541.96402328,0.00013698,2]
[361200294,1747336238305,-583.02224292,0.00013698,2]
[361200296,1747336238314,-400.0,0.00013698,2]
[361200298,1747336238324,-450.0,0.00013698,2]
[361200300,1747336238334,-400.0,0.00013698,2]
[361200302,1747336238343,-450.0,0.00013698,2]
[361200304,1747336238354,-400.0,0.00013698,2]
[361200306,1747336238363,-450.0,0.00013698,2]
[361200308,1747336238373,-450.0,0.00013698,2]
[361200310,1747336238383,-450.0,0.00013698,2]
[361200312,1747336238392,-450.0,0.00013698,2]
[361200314,1747336238401,-400.0,0.00013698,2]
[361200316,1747336238410,-450.0,0.00013698,2]
[361200318,1747336238420,-450.0,0.00013698,2]
[361200320,1747336238429,-450.0,0.00013698,2]
[361200322,1747336238438,-450.0,0.00013698,2]
[361200323,1747336238447,-400.0,0.00013698,2]
[361200324,1747336238457,-400.0,0.00013698,2]
[361200325,1747336238466,-450.0,0.00013698,2]
[361200326,1747336238476,-400.0,0.00013698,2]
[361200327,1747336238486,-450.0,0.00013698,2]
[361200328,1747336238496,-450.0,0.00013698,2]
[361200329,1747336238505,-450.0,0.00013698,2]
[361200330,1747336238516,-450.0,0.00013698,2]
[361200331,1747336238525,-450.0,0.00013698,2]